Cogmind - Beta 13 @@@ ROGUE MODE // 2024.04.22 @ 23:30:05 Player: darki Result: Destroyed by S-10 Pest with Light Assault Rifle Performance ------------- Evolutions (1) 500 Regions Visited (6) 1200 Robots Destroyed (92) 460 Value Destroyed (2132) 2132 Prototype IDs (7) 140 Alien Tech Used (0) 0 Bonus (153) 153 TOTAL SCORE: 4585 Bonus ------- High Alert Combat Kills 76 Follower Combat Kills 77 Cogmind --------- Core Integrity 0/400 Matter 300/300 Energy 250/265 System Corruption 0% Temperature Warm (125) Movement Treading (305) Ox2 Location -8/Mines Parts ------- > --- POWER (1) -------- Improved Ion Engine > --- PROPULSION (2) --- Advanced Treads Advanced Treads > --- UTILITY (3) ------ Advanced Heat Sink Huge Storage Unit Hardened Medium Armor Plating > --- WEAPON (3) ------- Particle Gun Improved Medium Laser Improved Medium Laser > --- INVENTORY (25) --- Cooled Ion Engine Reinforced Deuterium Engine Light Fission Core Advanced Treads Advanced Treads Improved Heat Sink Huge Storage Unit High-capacity Matter Pod (200) High-capacity Matter Pod (200) Improved Terrain Scanner Improved Targeting Computer Target Analyzer Target Analyzer Hardened Medium Armor Plating Hardened Medium Armor Plating Insulated Plating Heavy EM Pulse Gun Light EM Pulse Cannon Grenade Launcher Rocket Launcher Mini Grenade Launcher Maul Mining Claw Peak State ------------ > --- POWER ------------ Improved Ion Engine > --- PROPULSION ------- Advanced Treads Advanced Treads > --- UTILITY ---------- Advanced Heat Sink Huge Storage Unit Hardened Medium Armor Plating > --- WEAPON ----------- Particle Gun Improved Medium Laser Improved Medium Laser > --- INVENTORY -------- Cooled Ion Engine Reinforced Deuterium Engine Light Fission Core Advanced Treads Advanced Treads Improved Heat Sink Huge Storage Unit High-capacity Matter Pod High-capacity Matter Pod Improved Terrain Scanner Improved Targeting Computer Target Analyzer Target Analyzer Hardened Medium Armor Plating Hardened Medium Armor Plating Hardened Medium Armor Plating Insulated Plating Heavy EM Pulse Gun Light EM Pulse Cannon Grenade Launcher Rocket Launcher Mini Grenade Launcher Maul Mining Claw [Rating: 30] Favorites ----------- Power Improved Ion Engine Engine Improved Ion Engine Propulsion Light Treads Treads Light Treads Leg Aluminum Leg Utility Huge Storage Unit Device Heat Sink Storage Huge Storage Unit Processor Transport Network Coupler Hackware Hacking Suite Protection Hardened Medium Armor Plating Weapon Improved Medium Laser Energy Gun Improved Medium Laser Energy Cannon Advanced Beam Cannon Ballistic Gun Heavy Assault Rifle Ballistic Cannon Light Cannon Launcher Mini Grenade Launcher Build | -11 -10 -10 -9 -9 -9 -8 ------- Run | Yrd Mat Min Mat Min Exi Min Slots Evolved 2 | . . . 2 . . . Power . | . . . . . . . Propulsion . | . . . . . . . Utility 1 | . . . 1 . . . Weapon 1 | . . . 1 . . . Parts Attached 47 | . 8 . 27 7 . 5 Power 6 | . 1 . 5 . . . Engine 6 | . 1 . 5 . . . Core . | . . . . . . . Reactor . | . . . . . . . Propulsion 10 | . 2 . 6 1 . 1 Treads 10 | . 2 . 6 1 . 1 Leg . | . . . . . . . Wheel . | . . . . . . . Hover . | . . . . . . . Flight . | . . . . . . . Utility 17 | . 3 . 9 3 . 2 Device 10 | . 1 . 6 2 . 1 Storage 3 | . 2 . 1 . . . Processor 1 | . . . 1 . . . Hackware 1 | . . . 1 . . . Protection 2 | . . . . 1 . 1 Artifact . | . . . . . . . Weapon 14 | . 2 . 7 3 . 2 Energy Gun 7 | . . . 4 2 . 1 Energy Cannon 3 | . 1 . 2 . . . Ballistic Gun 2 | . . . 1 1 . . Ballistic Cannon 1 | . 1 . . . . . Launcher 1 | . . . . . . 1 Special Weapon . | . . . . . . . Impact Weapon . | . . . . . . . Slashing Weapon . | . . . . . . . Piercing Weapon . | . . . . . . . Special Melee Weapon . | . . . . . . . Unidentified Prototypes 2 | . . . 2 . . . Parts Lost 9 | . . . 4 3 . 2 Power . | . . . . . . . Propulsion 3 | . . . 1 1 . 1 Utility 1 | . . . 1 . . . Weapon 5 | . . . 2 2 . 1 Highest Loss Streak 2 | . . . 1 2 . 1 To Critical Strikes . | . . . . . . . Average Slot Usage (%) 99 | . 99 100 99 99 100 98 Engine 11 | . 14 14 10 11 11 11 Treads 22 | . 25 28 22 21 22 21 Device 15 | . 13 14 19 11 11 11 Storage 11 | . 14 14 11 11 11 11 Protection 3 | . . . . 10 11 11 Energy Gun 12 | . 1 . 14 14 22 32 Energy Cannon 9 | . 12 14 14 . . . Ballistic Gun 6 | . 1 . 4 18 11 . Ballistic Cannon 3 | . 12 14 . . . . Naked Turns . | . . . . . . . Heaviest Build 105 | 13 92 92 101 105 105 105 Greatest Support 44 | 20 40 40 40 42 42 44 Greatest Overweight (x) 2 | . 2 2 2 2 2 2 Average Overweight (x) 1 | . . 2 2 2 2 2 Largest Inventory Capacity 25 | . 25 25 25 25 25 25 Average Capacity 23 | . 17 25 25 25 25 25 Most Carried 25 | . 17 18 25 25 25 25 Average Carried 21 | . 11 17 23 24 24 24 Final Capacity 25 | 8 25 25 25 25 25 25 Final Carried 25 | 6 17 18 25 23 25 23 Class Distribution -------------------- 30% | Tank 25% | Scavenger-Gunner 23% | Mutant 13% | Gunner 4% | Skirmisher Dominant Class ---------------- Mutant | -10/Materials Mutant | -10/Mines Scavenger-Gunner | -9/Materials Tank | -9/Mines Tank | -9/Exiles Scavenger-Tank | -8/Mines Resources | -11 -10 -10 -9 -9 -9 -8 ----------- Run | Yrd Mat Min Mat Min Exi Min Matter Collected 1818 | 200 395 118 779 166 . 160 Remotely . | . . . . . . . Salvage Created 2988 | . 506 110 1543 412 . 417 Parts 172 | . 38 4 94 19 . 17 Haulers Intercepted 8 | . 2 . 6 . . . Recyclers Shooed 1 | . 1 . . . . . Parts Field Recycled . | . . . . . . . Retrieved Matter . | . . . . . . . Parts Self-Destructed . | . . . . . . . Prevented . | . . . . . . . Kills | -11 -10 -10 -9 -9 -9 -8 ------- Run | Yrd Mat Min Mat Min Exi Min Combat Hostiles Destroyed 69 | . 11 2 36 12 . 8 Guns 43 | . 4 . 21 12 . 6 Cannons 22 | . 7 2 13 . . . AOE 1 | . . . . . . 1 Classes Destroyed 9 | . 8 . 1 . . . Builder 3 | . 1 . 2 . . . Tunneler 3 | . 1 1 . 1 . . Hauler 8 | . 2 . 6 . . . Recycler 2 | . 1 . . . . 1 Operator 5 | . 2 . 3 . . . Watcher 2 | . 1 . 1 . . . Swarmer 28 | . 5 . 15 6 . 2 Grunt 31 | . 6 2 13 4 . 6 Sentry 10 | . . . 8 2 . . Best Kill Streak 8 | . 3 2 8 6 . 4 Combat Bots Only 8 | . 3 2 8 6 . 3 Max Kills in Single Turn 2 | . 2 1 2 2 . 2 Gunslinging 1 | . . . . 1 . . Exploded 1 | . . . . . . 1 Melee . | . . . . . . . Uniques/NPCs Destroyed . | . . . . . . . Combat | -11 -10 -10 -9 -9 -9 -8 -------- Run | Yrd Mat Min Mat Min Exi Min Hostile Shots Fired 339 | . 59 2 183 62 . 33 Missed 85 | . 19 . 44 16 . 6 Damage Taken 2873 | . 387 23 1467 544 . 452 Core 488 | . 84 . 247 80 . 77 Absorbed by Shields . | . . . . . . . Core Remaining (%) 83 | 100 . 66 . . . . Volleys Fired 196 | . 59 3 91 24 . 19 Largest 3 | . 2 2 3 3 . 3 Hottest 193 | . 95 95 193 135 . 177 Shots Fired 523 | . 118 7 273 71 . 54 Gun 312 | . 38 . 151 71 . 52 Cannon 209 | . 80 7 122 . . . Launcher 2 | . . . . . . 2 Special . | . . . . . . . Kinetic 136 | . 59 3 36 37 . 1 Thermal 385 | . 59 4 237 34 . 51 Explosive 2 | . . . . . . 2 Electromagnetic . | . . . . . . . Robot Hit Streak 22 | . 12 8 22 9 . 17 Robot Miss Streak 4 | . 3 . 3 4 . 2 Penetration Max . | . . . . . . . Secondary Targets 12 | . . . 2 7 . 3 Max Gunslinging Chain 1 | . . . 1 1 . 1 Shots Hit Robots 326 | . 76 7 161 43 . 39 Core Hits 115 | . 26 4 53 17 . 15 Critical Kills 1 | . 1 . . . . . Critical Parts Destroyed . | . . . . . . . Critical Strikes 24 | . 4 . 11 3 . 6 Burn 22 | . 2 . 11 3 . 6 Destroy 1 | . 1 . . . . . Blast 1 | . 1 . . . . . Melee Attacks . | . . . . . . . Impact . | . . . . . . . Slashing . | . . . . . . . Piercing . | . . . . . . . Sneak Attacks . | . . . . . . . Combat Hostiles . | . . . . . . . Follow-up Attacks . | . . . . . . . Damage Inflicted 5813 | . 1237 125 3033 694 . 724 Guns 3325 | . 290 . 1683 694 . 658 Cannons 2418 | . 943 125 1350 . . . Explosions 65 | . . . . . . 65 Melee . | . . . . . . . Ramming 5 | . 4 . . . . 1 Kinetic 1246 | . 581 54 279 332 . . Thermal 4497 | . 652 71 2754 362 . 658 Explosive 65 | . . . . . . 65 Electromagnetic . | . . . . . . . Impact . | . . . . . . . Slashing . | . . . . . . . Piercing . | . . . . . . . Highest Corruption 4 | . 4 4 . . . . Average Corruption 3 | . 2 4 . . . . Corruption Purged . | . . . . . . . Corruption Blocked . | . . . . . . . Effects 18 | . 9 9 . . . . Message Errors 5 | . 3 2 . . . . Matter Fused 7 | . 3 4 . . . . Heat Flow Errors 1 | . 1 . . . . . Energy Discharges 1 | . 1 . . . . . Data Loss (minor) 3 | . 1 2 . . . . Misfires 1 | . . 1 . . . . Overload Shots . | . . . . . . . Overflow Damage 28 | . 28 . . . . . Projectiles 28 | . 28 . . . . . Explosions . | . . . . . . . Melee . | . . . . . . . Knockbacks 6 | . 5 1 . . . . Impact . | . . . . . . . Kinetic 6 | . 5 1 . . . . Secondary . | . . . . . . . Self-Inflicted Damage 43 | . . . . . . 43 Shots 1 | . . . . . . 1 Rammed 3 | . 2 . . . . 1 Targets Rammed 3 | . 2 . . . . 1 Kicked . | . . . . . . . Crushed . | . . . . . . . Highest Temperature 570 | . 241 6 352 263 . 570 Average Temperature 108 | . 65 4 96 88 . 218 Received Heat Transfer 1002 | . 111 15 405 264 . 207 Effects 5 | . . . 1 . . 4 Shutdowns 1 | . . . . . . 1 Energy Bleed 1 | . . . . . . 1 Interference 1 | . . . 1 . . . Matter Decay 2 | . . . . . . 2 Siege Activations . | . . . . . . . Robots Corrupted . | . . . . . . . Combat Hostiles . | . . . . . . . Parts Fried . | . . . . . . . Impact Corruptions . | . . . . . . . Robots Melted 3 | . . . 2 . . 1 Combat Hostiles 3 | . . . 2 . . 1 Parts Melted 30 | . 5 . 19 4 . 2 Heat Transferred 10989 | . 1665 148 6290 999 . 1887 Parts Sabotaged . | . . . . . . . Parts Stolen . | . . . . . . . Parts Stripped . | . . . . . . . Power Chain Reactions . | . . . . . . . Alert | -11 -10 -10 -9 -9 -9 -8 ------- Run | Yrd Mat Min Mat Min Exi Min Peak Influence 615 | . 196 76 615 414 . 221 Initial 234 | . . 6 . 234 . . Average 191 | . 39 39 288 176 . 123 Maximum Alert Level 2 | . . . 2 2 . 1 Low Security (%) 54 | . 100 100 27 52 . 97 Level 1 30 | . . . 49 33 . 2 Level 2 14 | . . . 23 13 . . Level 3 . | . . . . . . . Level 4 . | . . . . . . . Level 5 . | . . . . . . . High Security . | . . . . . . . Max Security . | . . . . . . . Squads Dispatched 7 | . 2 . 5 . . . Investigation 2 | . 1 . 1 . . . Extermination . | . . . . . . . Reinforcement 4 | . 1 . 3 . . . Assault 1 | . . . 1 . . . Garrison . | . . . . . . . Intercept . | . . . . . . . Searches Triggered . | . . . . . . . Construction Impeded . | . . . . . . . Haulers Reinforced . | . . . . . . . Active Scanning Responses . | . . . . . . . Cargo Convoy Interrupts . | . . . . . . . Stealth | -11 -10 -10 -9 -9 -9 -8 --------- Run | Yrd Mat Min Mat Min Exi Min Distress Signals 4 | . . . 4 . . . Communications Jammed . | . . . . . . . Distress Signals . | . . . . . . . Times Spotted 108 | . 24 3 58 13 . 10 Peak Tracking Total 7 | . 3 2 7 7 . 3 Tactical Retreats 3 | . . 1 2 . . . Traps | -11 -10 -10 -9 -9 -9 -8 ------- Run | Yrd Mat Min Mat Min Exi Min Traps Triggered 5 | . 4 . 1 . . . Indirectly . | . . . . . . . Trap Hack Attempts . | . . . . . . . Triggered . | . . . . . . . Disarmed . | . . . . . . . Reprogrammed . | . . . . . . . Reused . | . . . . . . . Traps Extracted . | . . . . . . . Installed . | . . . . . . . Triggered . | . . . . . . . Machines | -11 -10 -10 -9 -9 -9 -8 ---------- Run | Yrd Mat Min Mat Min Exi Min Machines Disabled 2 | . . . 1 1 . . Max in Single Turn 1 | . . . 1 1 . . Machines Repaired . | . . . . . . . Machines Dismantled . | . . . . . . . Machines Sabotaged . | . . . . . . . Overloaded Fab Kills . | . . . . . . . Hacking | -11 -10 -10 -9 -9 -9 -8 --------- Run | Yrd Mat Min Mat Min Exi Min Machines Accessed 12 | . 4 . 7 . 1 . Terminals 11 | . 4 . 7 . . . Fabricators . | . . . . . . . Repair Stations . | . . . . . . . Recycling Units . | . . . . . . . Scanalyzers . | . . . . . . . Garrison Access . | . . . . . . . Total Hacks 24 | . 10 . 13 . 1 . Successful 13 | . 5 . 7 . 1 . Failed 10 | . 4 . 6 . . . Catastrophic 4 | . 1 . 3 . . . Database Lockouts 1 | . 1 . . . . . Manual 12 | . 5 . 7 . . . Terminals 23 | . 10 . 13 . . . Fabricators . | . . . . . . . Repair Stations . | . . . . . . . Recycling Units . | . . . . . . . Scanalyzers . | . . . . . . . Garrison Access . | . . . . . . . Terminal Hacks 13 | . 5 . 7 . 1 . Record 1 | . . . . . 1 . Robot Analysis 2 | . 1 . 1 . . . Prototype ID Bank 3 | . 2 . 1 . . . Branch Access Points 2 | . 1 . 1 . . . Emergency Access Points 1 | . . . 1 . . . Locate Traps 1 | . . . 1 . . . Hauler Manifests 2 | . 1 . 1 . . . Registered Components 1 | . . . 1 . . . Fabricator Hacks . | . . . . . . . Repair Station Hacks . | . . . . . . . Recycling Unit Hacks . | . . . . . . . Scanalyzer . | . . . . . . . Garrison Access Hacks . | . . . . . . . Unauthorized Hacks . | . . . . . . . Terminals . | . . . . . . . Fabricators . | . . . . . . . Repair Stations . | . . . . . . . Recycling Units . | . . . . . . . Scanalyzers . | . . . . . . . Garrison Access . | . . . . . . . Data Cores Recovered 1 | . 1 . . . . . Used . | . . . . . . . Hacking Detections 9 | . 3 . 6 . . . Full Trace Events . | . . . . . . . Feedback Events . | . . . . . . . Feedback Blocked . | . . . . . . . Robot Schematics Acquired . | . . . . . . . Robots Built . | . . . . . . . Authchips . | . . . . . . . Time . | . . . . . . . Total Robot Build Rating . | . . . . . . . Part Schematics Acquired . | . . . . . . . Parts Built . | . . . . . . . Authchips . | . . . . . . . Time . | . . . . . . . Total Part Build Rating . | . . . . . . . Parts Repaired . | . . . . . . . Time . | . . . . . . . Parts Recycled . | . . . . . . . Recycled Matter . | . . . . . . . Retrieved Matter . | . . . . . . . Retrieved Components . | . . . . . . . Parts Scanalyzed . | . . . . . . . Part Schematics Acquired . | . . . . . . . Parts Damaged . | . . . . . . . Bothacking | -11 -10 -10 -9 -9 -9 -8 ------------ Run | Yrd Mat Min Mat Min Exi Min Used RIF Installer . | . . . . . . . Robots Hacked . | . . . . . . . Non-combat . | . . . . . . . Combat . | . . . . . . . Robot Hacks Applied . | . . . . . . . Relay Couplers Released . | . . . . . . . Fabnet Peak Effective % . | . . . . . . . Robots Rewired . | . . . . . . . Allies Hacked . | . . . . . . . Hacks Repelled . | . . . . . . . Allies | -11 -10 -10 -9 -9 -9 -8 -------- Run | Yrd Mat Min Mat Min Exi Min Total Allies 3 | . . . . 3 . . Largest Group 3 | . . . . 3 . . Highest-Rated Group 40 | . . . . 40 . . Highest-Rated Ally 16 | . . . . 16 . . Total Orders . | . . . . . . . Ally Attacks 27 | . . . . 27 . . Total Damage 279 | . . . . 279 . . Kills 3 | . . . . 3 . . Allies Corrupted . | . . . . . . . Allies Melted . | . . . . . . . Intel | -11 -10 -10 -9 -9 -9 -8 ------- Run | Yrd Mat Min Mat Min Exi Min Robot Analysis Total 2 | . 1 . 1 . . . Derelict Logs Recovered 3 | . . 1 . 2 . . Drone Launches . | . . . . . . . Drone Recoveries . | . . . . . . . Exploration | -11 -10 -10 -9 -9 -9 -8 ------------- Run | Yrd Mat Min Mat Min Exi Min Turns Passed 10077 | . 1896 506 4288 1681 1358 348 Spaces Moved 3128 | 1 765 155 1184 504 435 84 Core . | . . . . . . . Treads 3035 | . 673 155 1184 504 435 84 Legs 93 | 1 92 . . . . . Wheels . | . . . . . . . Hover . | . . . . . . . Flight . | . . . . . . . Fastest Speed 120 | 120 120 320 320 312 312 305 Average Speed 291 | 120 215 320 320 312 312 310 Slowest Speed 320 | 120 320 320 320 320 312 312 Overloaded Moves . | . . . . . . . Propulsion Burnouts . | . . . . . . . Robots Hopped . | . . . . . . . Cave-ins Triggered . | . . . . . . . Exploration Rate (%) 60 | 2 98 40 78 94 91 21 Regions Visited 6 Branch Regions 4 Pre-discovered Areas 1 | . . . . 1 . . Known Exits Taken 2 | . 1 . 1 . . . Unknown Exits Taken 4 | 1 . 1 . 1 1 . Scrap Searched 1 | . . . . 1 . . Spaces Dug . | . . . . . . . Terrain Destroyed 34 | . . . . . . 34 Melee . | . . . . . . . Projectile . | . . . . . . . AOE 34 | . . . . . . 34 Terrain Rammed . | . . . . . . . Walls Destroyed . | . . . . . . . Machines Disabled . | . . . . . . . Actions | -11 -10 -10 -9 -9 -9 -8 --------- Run | Yrd Mat Min Mat Min Exi Min Total 3695 | . 902 161 1503 561 438 130 Wait 216 | . 49 3 126 20 . 18 Move 3122 | . 764 154 1183 503 434 84 Hop . | . . . . . . . Pick Up 53 | . 11 1 35 3 3 . Fast Attach 10 | . 3 . 6 . . 1 Attach 17 | . 2 . 8 4 . 3 Detach 7 | . 4 . 2 . . 1 Swap 20 | . 3 . 13 3 . 1 Drop 51 | . 5 . 39 4 1 2 Fire 196 | . 59 3 91 24 . 19 Melee . | . . . . . . . Ram . | . . . . . . . Kick . | . . . . . . . Crush 3 | . 2 . . . . 1 Escape Stasis . | . . . . . . . Rewire . | . . . . . . . Trap . | . . . . . . . Miscellaneous . | . . . . . . . Route ------- -11/Scrapyard -10/Materials (discovered 5 exits: *Mat x3 / *Min x2) -10/Mines -9/Materials (discovered 2 exits: [*Mat] / *Min) -9/Mines (discovered 3 exits: [*Mat x2] / *Exi) -9/Exiles -8/Mines History --------- Turn | Location | Event 1 | -11/Scrapyard | Discovered new exit (range 0) 1 | -11/Scrapyard | Entered Materials 316 | -10/Materials | Build established: Mutant 612 | -10/Materials | Discovered new exit (range 4) 819 | -10/Materials | Discovered new exit (range 9) 997 | -10/Materials | Discovered new exit (range 16) 1002 | -10/Materials | Central database locked down 1246 | -10/Materials | Discovered new exit (range 5) 1315 | -10/Materials | Discovered new exit (range 9) 1325 | -10/Materials | Identified exit to Mines 1897 | -10/Materials | Entered Mines 2119 | -10/Mines | Assembled infested the area 2124 | -10/Mines | Assisted by a Guerilla fighting off Assembled 2224 | -10/Mines | Learned Materials terminal intel 2365 | -10/Mines | Discovered new exit (range 12) 2403 | -10/Mines | Entered Materials 2403 | -9/Materials | Evolved 2 slots: Utility x1, Weapon x1 2404 | -9/Materials | Loaded intel: 12 terminal locations 2705 | -9/Materials | Build established: Gunner 2834 | -9/Materials | Discovered new exit (range 7) 2934 | -9/Materials | Discovered new exit (range 15) 3070 | -9/Materials | Destroyed 8 combat bots 3698 | -9/Materials | Identified exit to Mines 4045 | -9/Materials | Build established: Scavenger-Gunner 4806 | -9/Materials | Build established: Skirmisher 5353 | -9/Materials | Build established: Scavenger-Gunner 5430 | -9/Materials | Core integrity fell below 50% 6003 | -9/Materials | First assault squad dispatched 6691 | -9/Materials | Entered Mines 6695 | -9/Mines | Discovered new exit (range 12) 7088 | -9/Mines | Build established: Tank 7316 | -9/Mines | Assisted by bots powering up and referring to "LRC-V3" 7504 | -9/Mines | Received a Rocket Launcher from a helpful Derelict 7926 | -9/Mines | Learned location of 1 exit from Materials 7999 | -9/Mines | Core integrity fell below 20% 8132 | -9/Mines | Discovered new exit (range 13) 8357 | -9/Mines | Deemed a non-threat by the Exiles lab entrance 8360 | -9/Mines | Discovered new exit (range 5) 8372 | -9/Mines | Entered Exiles 8372 | -9/Exiles | Found Exiles lab abandoned 9693 | -9/Exiles | Discovered new exit (range 12) 9730 | -9/Exiles | Entered Mines 10078 | -8/Mines | Destroyed by S-10 Pest with Light Assault Rifle Last Messages --------------- 09982_ G-47 Trooper destroyed. 09982_ Switching to secondary target: G-47 Trooper. 09982_ R-06 Scavenger collects Aluminum Leg. 09983_ Overheating: Matter decay (-48). 09985_ Overheating: Matter decay (-47). 09986_ Lgt. Treads destroyed. 09990_ G-47 Trooper destroyed. 09990_ R-06 Scavenger destroyed. 09990_ R-06 Scavenger collects Lgt. Nuclear Core. 09993_ R-06 Scavenger collects Com. Wheel. 10002_ Dropped Hrd. Medium Armor Plating. 10003_ Acquired 110 matter. 10031_ Slammed into R-06 Scavenger. 10070_ Flight Unit melted. 10070_ S-10 Pest destroyed. 10071_ K-01 Serf collects debris. 10074_ S-10 Pest suffers critical hit (Burn). 10077_ S-10 Pest destroyed. 10077_ Switching to secondary target: S-10 Pest. 10077_ S-10 Pest suffers critical hit (Burn). Map ----- +----------------------------------------------------+ | ????????????????????????????????????? | | ????????????????????????????????????? | | ????????????????????????????????????? | | ????????????????????????????????????? | | ????????????????????????????????????? | | ????????????????????????????????????? | | ????????????????????????????????????? | | ????????????????????????????????????? | | ????????????????????????????????????? | | ????????????????????????????????????? | | ????????????????????????????????????? | | ????????????????????????????????????? | | ????????????????????????????????????? | | ????????????????????????????????????? | | ????????????????????????????????????? | | ??????????????????????????????####??? | | ????????##????????????######?## ##?? | | ???????# #???????????# ### #?? | | ??????? ???????????# #?? | | ????#?? ???????????# #?? | | ???## """ ??????????## #?? | | ??## """ ???????????# ## ### | | ??# """ ???????????# ##### | | ??# """ ####???????#*#???## ### | | ??# =s*#???????#[#????## #?? | | ???????# @s #???????#%#?????# #?? | | ???????####### #???????#!####??# #?? | | ?????????????# #########[=* ##?# #?? | | ?????????????# ## ! #?# ### | | ?????????????######## ## """ #?# | | ????????????????????#%## """ #?###### | | ????????????????????# """ #??????? | | ????????????????????# #??????? | | ????????????????????###### #??????? | | ??????????????????????????# #??????? | | ??????????????????????????? #??????? | | ??????????????????????????? #??????? | | ???????????????????????????? #??????? | | ?????????????????????????????#??????? | | ????????????????????????????????????? | | ????????????????????????????????????? | | ????????????????????????????????????? | | ????????????????????????????????????? | | ????????????????????????????????????? | | ????????????????????????????????????? | | ????????????????????????????????????? | | ????????????????????????????????????# | | ????????????????????????????????????# | | ?????????????????????????????????#### | | ????????????????????????????????## # | +----------------------------------------------------+ Best States ------------- Heat Dissipation 52 Energy Generation 14 Energy Capacity 280 Matter Stores 300 Matter Capacity 300 Sight Range 16 Terrain Scan Density 10 Armor Coverage 225 Evasion (%) 55 Recoil Reduction 2 Offensive Hacking 10 Item Schematics ----------------- None Robot Schematics ------------------ None Fabricated ------------ Nothing Alien Tech Used ----------------- None Achievements -------------- None Challenges ------------ None Game ------ Seed NeutrinoElectronBuckler Manual? 0 Play Time 00:30:16 Cumulative 230.6 hours Start 2024.04.22 @ 22:57:37 End 2024.04.22 @ 23:30:05 Sessions 1 Manual Loads 0 Difficulty Rogue Special Mode None Game No. 226 Rogue 226 Adventurer 0 Explorer 0 Win Type - Total 6 Types 4/0/0/1/1/0/0/0/0 Lore% 70 Gallery% 79 Achievement% 67 Wizard Run 0 Options --------- Layout 0 ASCII 0 Keyboard 0 Movement Numpad Keybinds 0 Fullscreen 2 Font 18/SmallcapsGlow Map View 76x50 Zoom Use 0% Tactical HUD 1 Map Filters NONE Filters NONE Steam 1 RUN: 62273acf-f274-4a6a-891f-4ab068c4c186